fUST/lending_fUST_20260118
["ID","MTS","AMOUNT","RATE_DAILY","PERIOD"]
[402441457,1768678247386,-500.0,0.00016712,3]
[402441459,1768678247397,-500.0,0.00016712,3]
[402441461,1768678247406,-500.0,0.00016712,3]
[402441463,1768678247415,-500.0,0.00016712,3]
[402441465,1768678247425,-500.0,0.00016712,3]
[402441467,1768678247434,-500.0,0.00016712,3]
[402441469,1768678247443,-500.0,0.00016712,3]
[402441471,1768678247453,-578.13,0.00016712,3]
[402441473,1768678247462,-500.0,0.00016712,3]
[402441475,1768678247472,-500.0,0.00016712,3]
[402441477,1768678247481,-500.0,0.00016712,3]
[402441479,1768678247491,-500.0,0.00016712,3]
[402441481,1768678247500,-533.97,0.00016712,3]
[402441483,1768678247510,-500.0,0.00016712,3]
[402441485,1768678247520,-500.0,0.00016712,3]
[402441487,1768678247530,-500.0,0.00016712,3]
[402441489,1768678247539,-500.0,0.00016712,3]
[402441492,1768678247549,-500.0,0.00016712,3]
[402441494,1768678247559,-500.0,0.00016712,3]
[402441496,1768678247568,-500.0,0.00016712,3]
[402441498,1768678247577,-546.97,0.00016712,3]
[402441500,1768678247587,-915.52,0.00016712,3]
[402441502,1768678247596,-500.0,0.00016712,3]
[402441504,1768678247605,-500.0,0.00016712,3]
[402441506,1768678247615,-500.0,0.00016712,3]
[402441508,1768678247625,-272.32832549,0.00016712,3]
[402441510,1768678247634,-500.0,0.00016712,3]
[402441512,1768678247648,-500.0,0.00016712,3]
[402441514,1768678247657,-543.74,0.00016712,3]
[402441516,1768678247666,-500.0,0.00016712,3]
[402441518,1768678247676,-1080.02,0.00016712,3]
[402441520,1768678247686,-500.0,0.00016712,3]
[402441522,1768678247696,-500.0,0.00016712,3]
[402441525,1768678247707,-500.0,0.00016712,3]
[402441527,1768678247718,-1116.59,0.00016712,3]
[402441529,1768678247727,-530.22,0.00016712,3]
[402441531,1768678247737,-500.0,0.00016712,3]
[402441533,1768678247746,-500.0,0.00016712,3]
[402441535,1768678247755,-666.55,0.00016712,3]
[402441537,1768678247767,-500.0,0.00016712,3]
[402441539,1768678247777,-640.69,0.00016712,3]
[402441541,1768678247786,-500.0,0.00016712,3]
[402441543,1768678247795,-500.0,0.00016712,3]
[402441545,1768678247804,-535.81,0.00016712,3]
[402441547,1768678247814,-500.0,0.00016712,3]
[402441549,1768678247823,-803.97,0.00016712,3]
[402441551,1768678247833,-500.0,0.00016712,3]
[402441553,1768678247843,-894.28,0.00016712,3]
[402441555,1768678247853,-500.0,0.00016712,3]
[402441557,1768678247863,-500.0,0.00016712,3]
[402441559,1768678247872,-500.0,0.00016712,3]
[402441560,1768678247882,-500.0,0.00016712,3]
[402441561,1768678247892,-500.0,0.00016712,3]
[402441562,1768678247902,-500.0,0.00016712,3]
[402441563,1768678247913,-716.84,0.00016712,3]
[402441564,1768678247923,-510.34,0.00016712,3]
[402441565,1768678247933,-886.01,0.00016712,3]
[402441566,1768678247942,-500.0,0.00016712,3]
[402441567,1768678247952,-1108.48,0.00016712,3]
[402441568,1768678247961,-500.0,0.00016712,3]
[402441569,1768678247971,-906.41,0.00016712,3]
[402441570,1768678247980,-999.87,0.00016712,3]
[402441571,1768678247989,-500.0,0.00016712,3]
[402441572,1768678247998,-500.0,0.00016712,3]
[402441573,1768678248007,-1093.11,0.00016712,3]
[402441574,1768678248017,-500.0,0.00016712,3]
[402441575,1768678248026,-500.0,0.00016712,3]
[402441576,1768678248035,-500.0,0.00016712,3]
[402441577,1768678248046,-1503.34,0.00016712,3]
[402441578,1768678248055,-583.06,0.00016712,3]
[402441579,1768678248064,-772.35,0.00016712,3]
[402441580,1768678248074,-500.0,0.00016712,3]
[402441581,1768678248083,-500.0,0.00016712,3]
[402441582,1768678248093,-500.0,0.00016712,3]
[402441583,1768678248102,-678.11,0.00016712,3]
[402441584,1768678248112,-1038.1,0.00016712,3]
[402441585,1768678248121,-500.0,0.00016712,3]
[402441586,1768678248131,-1066.58,0.00016712,3]
[402441587,1768678248140,-500.0,0.00016712,3]
[402441588,1768678248150,-841.62,0.00016712,3]
[402441589,1768678248159,-500.0,0.00016712,3]
[402441590,1768678248168,-500.0,0.00016712,3]
[402441591,1768678248178,-500.0,0.00016712,3]
[402441592,1768678248187,-500.0,0.00016712,3]
[402441593,1768678248197,-500.0,0.00016712,3]
[402441594,1768678248206,-903.33,0.00016712,3]
[402441595,1768678248215,-510.61,0.00016712,3]
[402441596,1768678248225,-554.46,0.00016712,3]
[402441597,1768678248236,-500.0,0.00016712,3]
[402441599,1768678248246,-500.0,0.00016712,3]
[402441601,1768678248255,-500.0,0.00016712,3]
[402441603,1768678248264,-774.07,0.00016712,3]
[402441605,1768678248274,-629.03,0.00016712,3]
[402441608,1768678248283,-500.0,0.00016712,3]
[402441610,1768678248292,-342.33666613,0.00016712,3]
[402441612,1768678248301,-500.0,0.00016712,3]
[402441614,1768678248310,-500.0,0.00016712,3]
[402441616,1768678248320,-1121.23,0.00016712,3]
[402441618,1768678248329,-1899.56,0.00016712,3]
[402441620,1768678248338,-782.37,0.00016712,3]
[402441622,1768678248347,-500.0,0.00016712,3]
[402441624,1768678248356,-500.0,0.00016712,3]
[402441625,1768678248365,-500.0,0.00016712,3]
[402441627,1768678248374,-500.0,0.00016712,3]
[402441629,1768678248383,-500.0,0.00016712,3]
[402441631,1768678248392,-500.0,0.00016712,3]
[402441633,1768678248402,-500.0,0.00016712,3]
[402441634,1768678248411,-600.45,0.00016712,3]
[402441636,1768678248421,-500.0,0.00016712,3]
[402441637,1768678248430,-314.91278331,0.00016712,3]
[402441639,1768678248440,-500.0,0.00016712,3]
[402441641,1768678248449,-1227.46,0.00016712,3]
[402441643,1768678248458,-500.0,0.00016712,3]
[402441644,1768678248467,-500.0,0.00016712,3]
[402441645,1768678248476,-500.0,0.00016712,3]
[402441646,1768678248486,-500.0,0.00016712,3]
[402441647,1768678248495,-500.0,0.00016712,3]
[402441648,1768678248505,-500.0,0.00016712,3]
[402441649,1768678248514,-970.35,0.00016712,3]
[402441650,1768678248523,-500.0,0.00016712,3]
[402441651,1768678248533,-500.0,0.00016712,3]
[402441652,1768678248542,-500.0,0.00016712,3]
[402441653,1768678248552,-1618.22,0.00016712,3]
[402441654,1768678248562,-500.0,0.00016712,3]
[402441656,1768678248571,-811.76,0.00016712,3]
[402441658,1768678248580,-500.0,0.00016712,3]
[402441660,1768678248590,-500.0,0.00016712,3]
[402441662,1768678248599,-1318.72,0.00016712,3]
[402441664,1768678248609,-1044.43,0.00016712,3]
[402441666,1768678248618,-500.0,0.00016712,3]
[402441668,1768678248628,-516.06,0.00016712,3]
[402441671,1768678248639,-500.0,0.00016712,3]
[402441672,1768678248652,-500.0,0.00016712,3]
[402441674,1768678248662,-232.64036101,0.00016712,3]
[402441676,1768678248671,-500.0,0.00016712,3]
[402441679,1768678248683,-1078.65,0.00016712,3]
[402441681,1768678248692,-741.42,0.00016712,3]
[402441683,1768678248701,-500.0,0.00016712,3]
[402441685,1768678248710,-500.0,0.00016712,3]
[402441687,1768678248722,-500.0,0.00016712,3]
[402441689,1768678248731,-500.0,0.00016712,3]
[402441691,1768678248740,-556.35,0.00016712,3]
[402441693,1768678248750,-500.0,0.00016712,3]
[402441695,1768678248759,-500.0,0.00016712,3]
[402441696,1768678248768,-346.63907245,0.00016712,3]
[402441698,1768678248777,-500.0,0.00016712,3]
[402441700,1768678248787,-500.0,0.00016712,3]
[402441702,1768678248796,-500.0,0.00016712,3]
[402441704,1768678248806,-500.0,0.00016712,3]
[402441706,1768678248816,-500.0,0.00016712,3]
[402441708,1768678248826,-1311.65,0.00016712,3]
[402441710,1768678248836,-500.0,0.00016712,3]
[402441712,1768678248847,-968.07,0.00016712,3]
[402441713,1768678248857,-576.57,0.00016712,3]
[402441714,1768678248867,-500.0,0.00016712,3]
[402441715,1768678248877,-500.0,0.00016712,3]
[402441716,1768678248887,-500.0,0.00016712,3]
[402441717,1768678248897,-500.0,0.00016712,3]
[402441718,1768678248908,-954.0,0.00016712,3]
[402441719,1768678248919,-1221.51,0.00016712,3]
[402441720,1768678248928,-1229.38,0.00016712,3]
[402441721,1768678248939,-1126.24,0.00016712,3]
[402441722,1768678249189,-500.0,0.00016712,3]
[402441723,1768678249199,-500.0,0.00016712,3]
[402441724,1768678249209,-500.0,0.00016712,3]
[402441725,1768678249219,-702.75,0.00016712,3]
[402441726,1768678249228,-501.93342136,0.00016712,3]
[402441727,1768678249237,-1167.5,0.00016712,3]
[402441728,1768678249246,-500.0,0.00016712,3]
[402441729,1768678249256,-1065.93,0.00016712,3]
[402441730,1768678249265,-632.04,0.00016712,3]
[402441731,1768678249275,-500.0,0.00016712,3]
[402441732,1768678249284,-501.65,0.00016712,3]
[402441733,1768678249293,-500.0,0.00016712,3]
[402441734,1768678249303,-592.87,0.00016712,3]
[402441735,1768678249312,-924.85,0.00016712,3]
[402441736,1768678249322,-500.0,0.00016712,3]
[402441737,1768678249331,-500.0,0.00016712,3]
[402441738,1768678249341,-500.0,0.00016712,3]
[402441739,1768678249351,-500.0,0.00016712,3]
[402441740,1768678249360,-662.22,0.00016712,3]
[402441741,1768678249369,-500.0,0.00016712,3]
[402441742,1768678249378,-671.8,0.00016712,3]
[402441743,1768678249388,-500.0,0.00016712,3]
[402441744,1768678249397,-500.0,0.00016712,3]
[402441745,1768678249408,-500.0,0.00016712,3]
[402441746,1768678249418,-500.0,0.00016712,3]
[402441747,1768678249428,-661.77,0.00016712,3]
[402441748,1768678249437,-500.0,0.00016712,3]
[402441749,1768678249446,-500.0,0.00016712,3]
[402441750,1768678249455,-500.0,0.00016712,3]
[402441751,1768678249464,-500.0,0.00016712,3]
[402441752,1768678249473,-500.0,0.00016712,3]
[402441753,1768678249482,-500.0,0.00016712,3]
[402441754,1768678249491,-500.0,0.00016712,3]
[402441755,1768678249500,-500.0,0.00016712,3]
[402441756,1768678249509,-1484.16,0.00016712,3]
[402441757,1768678249518,-923.8,0.00016712,3]
[402441759,1768678249528,-500.0,0.00016712,3]
[402441760,1768678249537,-668.48,0.00016712,3]
[402441762,1768678249547,-500.0,0.00016712,3]
[402441764,1768678249557,-522.84,0.00016712,3]
[402441766,1768678249566,-500.0,0.00016712,3]
[402441768,1768678249575,-1120.09,0.00016712,3]
[402441770,1768678249584,-500.0,0.00016712,3]
[402441772,1768678249593,-953.45,0.00016712,3]
[402441774,1768678249602,-500.0,0.00016712,3]
[402441776,1768678249611,-500.0,0.00016712,3]
[402441778,1768678249620,-591.39,0.00016712,3]
[402441780,1768678249630,-500.0,0.00016712,3]
[402441782,1768678249641,-500.0,0.00016712,3]
[402441784,1768678249650,-500.0,0.00016712,3]
[402441786,1768678249659,-500.0,0.00016712,3]
[402441788,1768678249668,-500.0,0.00016712,3]
[402441790,1768678249677,-500.0,0.00016712,3]
[402441792,1768678249689,-500.0,0.00016712,3]
[402441794,1768678249699,-500.0,0.00016712,3]
[402441796,1768678249708,-500.0,0.00016712,3]
[402441798,1768678249719,-573.26,0.00016712,3]
[402441800,1768678249728,-500.0,0.00016712,3]
[402441802,1768678249737,-500.0,0.00016712,3]
[402441804,1768678249746,-615.9,0.00016712,3]
[402441806,1768678249756,-500.0,0.00016712,3]
[402441808,1768678249765,-500.0,0.00016712,3]
[402441810,1768678249775,-500.0,0.00016712,3]
[402441812,1768678249784,-726.48,0.00016712,3]
[402441814,1768678249794,-500.0,0.00016712,3]
[402441816,1768678249803,-500.0,0.00016712,3]
[402441818,1768678249813,-500.0,0.00016712,3]
[402441820,1768678249823,-500.0,0.00016712,3]
[402441822,1768678249833,-500.0,0.00016712,3]
[402441824,1768678249843,-500.0,0.00016712,3]
[402441826,1768678249852,-720.99,0.00016712,3]
[402441828,1768678249862,-572.8,0.00016712,3]
[402441830,1768678249872,-500.0,0.00016712,3]
[402441832,1768678249887,-500.0,0.00016712,3]
[402441834,1768678249898,-524.17,0.00016712,3]
[402441836,1768678249907,-500.0,0.00016712,3]
[402441838,1768678249917,-500.0,0.00016712,3]
[402441840,1768678249929,-500.0,0.00016712,3]
[402441842,1768678249939,-500.0,0.00016712,3]
[402441844,1768678249949,-500.0,0.00016712,3]
[402441846,1768678249958,-780.39,0.00016712,3]
[402441848,1768678249967,-577.2,0.00016712,3]
[402441850,1768678249977,-392.31626832,0.00016712,3]
[402441852,1768678249986,-500.0,0.00016712,3]
[402441854,1768678249995,-500.0,0.00016712,3]
[402441856,1768678250007,-500.0,0.00016712,3]
[402441858,1768678250017,-500.0,0.00016712,3]
[402441860,1768678250026,-676.2,0.00016712,3]
[402441862,1768678250036,-682.04,0.00016712,3]
[402441864,1768678250045,-500.0,0.00016712,3]
[402441866,1768678250055,-500.0,0.00016712,3]
[402441868,1768678250065,-500.0,0.00016712,3]
[402441870,1768678250074,-500.0,0.00016712,3]
[402441872,1768678250083,-500.0,0.00016712,3]
[402441874,1768678250092,-827.64,0.00016712,3]
[402441876,1768678250102,-500.0,0.00016712,3]
[402441878,1768678250111,-500.0,0.00016712,3]
[402441880,1768678250120,-500.0,0.00016712,3]
[402441882,1768678250129,-1047.26,0.00016712,3]
[402441884,1768678250139,-829.45,0.00016712,3]
[402441886,1768678250149,-175.73098182,0.00016712,3]
[402441888,1768678250158,-969.81,0.00016712,3]
[402441890,1768678250168,-500.0,0.00016712,3]
[402441892,1768678250178,-786.17,0.00016712,3]
[402441894,1768678250188,-500.0,0.00016712,3]
[402441896,1768678250198,-278.05841257,0.00016712,3]
[402441898,1768678250207,-500.0,0.00016712,3]
[402441900,1768678250217,-514.91211625,0.00016712,3]
[402441902,1768678250226,-500.0,0.00016712,3]
[402441904,1768678250236,-1200.0,0.00016712,2]
[402441906,1768678250245,-500.0,0.00016712,3]
[402441908,1768678250254,-500.0,0.00016712,3]
[402441910,1768678250263,-500.0,0.00016712,3]
[402441912,1768678250272,-760.27,0.00016712,3]
[402441914,1768678250281,-500.0,0.00016712,3]
[402441916,1768678250291,-500.0,0.00016712,3]
[402441918,1768678250300,-500.0,0.00016712,3]
[402441920,1768678250309,-500.0,0.00016712,3]
[402441922,1768678250318,-577.61,0.00016712,3]
[402441924,1768678250327,-500.0,0.00016712,3]
[402441926,1768678250336,-1452.17,0.00016712,3]
[402441928,1768678250346,-500.0,0.00016712,3]
[402441930,1768678250355,-1000.0,0.00016712,2]
[402441932,1768678250364,-644.64,0.00016712,3]
[402441934,1768678250373,-521.93686507,0.00016712,3]
[402441936,1768678250386,-746.28,0.00016712,3]
[402441938,1768678250395,-524.22048595,0.00016712,3]
[402441940,1768678250403,-573.93,0.00016712,3]
[402441942,1768678250412,-500.0,0.00016712,3]
[402441944,1768678250421,-500.0,0.00016712,3]
[402441946,1768678250430,-500.0,0.00016712,3]
[402441948,1768678250439,-500.0,0.00016712,3]
[402441950,1768678250447,-500.0,0.00016712,3]
[402441952,1768678250456,-752.31,0.00016712,3]
[402441954,1768678250465,-500.0,0.00016712,3]
[402441956,1768678250474,-500.0,0.00016712,3]
[402441958,1768678250483,-790.74,0.00016712,3]
[402441959,1768678250491,-500.0,0.00016712,3]
[402441961,1768678250500,-500.0,0.00016712,3]
[402441963,1768678250509,-500.0,0.00016712,3]
[402441965,1768678250518,-500.0,0.00016712,3]
[402441967,1768678250527,-500.0,0.00016712,3]
[402441969,1768678250535,-500.0,0.00016712,3]
[402441971,1768678250546,-1185.91,0.00016712,3]
[402441973,1768678250555,-500.0,0.00016712,3]
[402441975,1768678250564,-1212.12,0.00016712,3]
[402441977,1768678250573,-151.0,0.00016712,2]
[402441979,1768678250581,-500.0,0.00016712,3]
[402441981,1768678250590,-500.0,0.00016712,3]
[402441983,1768678250599,-500.0,0.00016712,3]
[402441985,1768678250608,-500.0,0.00016712,3]
[402441987,1768678250618,-500.0,0.00016712,3]
[402441989,1768678250627,-500.0,0.00016712,3]
[402441991,1768678250637,-536.65897098,0.00016712,3]
[402441993,1768678250650,-500.0,0.00016712,3]
[402441995,1768678250660,-1427.0,0.00016712,3]
[402441998,1768678250670,-2146.74,0.00016712,3]
[402441999,1768678250679,-500.0,0.00016712,3]
[402442001,1768678250690,-500.0,0.00016712,3]
[402442003,1768678250700,-500.0,0.00016712,3]
[402442005,1768678250709,-500.0,0.00016712,3]
[402442007,1768678250720,-500.0,0.00016712,3]
[402442009,1768678250730,-500.0,0.00016712,3]
[402442011,1768678250739,-500.0,0.00016712,3]
[402442013,1768678250749,-500.0,0.00016712,3]
[402442015,1768678250760,-500.0,0.00016712,3]
[402442018,1768678250770,-1396.82,0.00016712,3]
[402442020,1768678250779,-541.99,0.00016712,3]
[402442022,1768678250789,-876.63,0.00016712,3]
[402442023,1768678250799,-611.98339815,0.00016712,3]
[402442025,1768678250809,-500.0,0.00016712,3]
[402442027,1768678250818,-1231.98,0.00016712,3]
[402442030,1768678250829,-500.0,0.00016712,3]
[402442032,1768678250838,-828.64,0.00016712,3]
[402442034,1768678250848,-500.0,0.00016712,3]
[402442036,1768678250857,-352.98387266,0.00016712,3]
[402442038,1768678250867,-815.77,0.00016712,3]
[402442040,1768678250877,-562.34469649,0.00016712,3]
[402442042,1768678250887,-500.0,0.00016712,3]
[402442044,1768678250897,-500.0,0.00016712,3]
[402442046,1768678250906,-1093.5,0.00016712,3]
[402442048,1768678250915,-500.0,0.00016712,3]
[402442050,1768678250925,-500.0,0.00016712,3]
[402442052,1768678250934,-1596.28,0.00016712,3]
[402442054,1768678250943,-500.0,0.00016712,3]
[402442056,1768678250953,-717.13,0.00016712,3]
[402442058,1768678250962,-500.0,0.00016712,3]
[402442060,1768678250971,-596.93,0.00016712,3]
[402442062,1768678250980,-678.82,0.00016712,3]
[402442064,1768678250990,-957.38,0.00016712,3]
[402442066,1768678250999,-1464.35,0.00016712,3]
[402442068,1768678251008,-937.36,0.00016712,3]
[402442069,1768678251018,-500.0,0.00016712,3]
[402442071,1768678251027,-500.0,0.00016712,3]
[402442073,1768678251036,-500.0,0.00016712,3]
[402442075,1768678251046,-500.0,0.00016712,3]
[402442077,1768678251055,-1712.83,0.00016712,3]
[402442078,1768678251065,-755.24,0.00016712,3]
[402442080,1768678251073,-500.0,0.00016712,3]
[402442082,1768678251082,-500.0,0.00016712,3]
[402442084,1768678251091,-1097.47,0.00016712,3]
[402442087,1768678251099,-500.0,0.00016712,3]
[402442089,1768678251109,-583.47,0.00016712,3]
[402442091,1768678251116,-523.29,0.00016712,3]
[402442093,1768678251124,-500.0,0.00016712,3]
[402442095,1768678251133,-239.58,0.00016712,3]
[402442097,1768678251142,-2232.18,0.00016712,3]
[402442099,1768678251151,-500.0,0.00016712,3]
[402442101,1768678251160,-500.0,0.00016712,3]
[402442103,1768678251170,-500.0,0.00016712,3]
[402442105,1768678251179,-500.0,0.00016712,3]
[402442106,1768678251189,-544.4,0.00016712,3]
[402442108,1768678251198,-591.18,0.00016712,3]
[402442111,1768678251208,-719.78,0.00016712,3]
[402442112,1768678251217,-500.0,0.00016712,3]
[402442114,1768678251227,-500.0,0.00016712,3]
[402442117,1768678251237,-500.0,0.00016712,3]
[402442118,1768678251247,-595.14,0.00016712,3]
[402442121,1768678251257,-500.0,0.00016712,3]
[402442123,1768678251266,-1088.22,0.00016712,3]
[402442125,1768678251275,-687.02,0.00016712,3]
[402442126,1768678251285,-847.39,0.00016712,3]
[402442128,1768678251294,-500.0,0.00016712,3]
[402442130,1768678251303,-500.0,0.00016712,3]
[402442132,1768678251312,-500.0,0.00016712,3]
[402442134,1768678251322,-591.83,0.00016712,3]
[402442136,1768678251331,-347.44370923,0.00016712,3]
[402442138,1768678251340,-500.0,0.00016712,3]
[402442140,1768678251350,-635.29,0.00016712,3]
[402442142,1768678251359,-500.0,0.00016712,3]
[402442144,1768678251368,-1030.18,0.00016712,3]
[402442146,1768678251377,-898.31,0.00016712,3]
[402442148,1768678251386,-1099.95,0.00016712,3]
[402442150,1768678251396,-1314.38,0.00016712,3]
[402442152,1768678251406,-1245.3,0.00016712,3]
[402442154,1768678251417,-500.0,0.00016712,3]
[402442156,1768678251426,-1620.2,0.00016712,3]
[402442158,1768678251435,-500.0,0.00016712,3]
[402442160,1768678251444,-500.0,0.00016712,3]
[402442162,1768678251454,-500.0,0.00016712,3]
[402442164,1768678251463,-7566.04,0.00016712,3]
[402442166,1768678251473,-500.0,0.00016712,3]
[402442168,1768678251482,-500.0,0.00016712,3]
[402442170,1768678251491,-1307.26,0.00016712,3]
[402442172,1768678251500,-500.0,0.00016712,3]
[402442174,1768678251510,-500.0,0.00016712,3]
[402442176,1768678251519,-500.0,0.00016712,3]
[402442178,1768678251528,-697.17,0.00016712,3]
[402442180,1768678251538,-500.0,0.00016712,3]
[402442182,1768678251547,-500.0,0.00016712,3]
[402442184,1768678251556,-1331.60505822,0.00016712,3]
[402442186,1768678251565,-500.0,0.00016712,3]
[402442188,1768678251574,-500.0,0.00016712,3]
[402442190,1768678251583,-500.0,0.00016712,3]
[402442192,1768678251592,-546.14,0.00016712,3]
[402442194,1768678251601,-426.38732043,0.00016712,3]
[402442196,1768678251610,-1059.88,0.00016712,3]
[402442198,1768678251619,-272.37095351,0.00016712,3]
[402442200,1768678251628,-500.0,0.00016712,3]
[402442201,1768678251638,-500.0,0.00016712,3]
[402442203,1768678251651,-588.78,0.00016712,3]
[402442206,1768678251664,-1550.57,0.00016712,3]
[402442208,1768678251677,-500.0,0.00016712,3]
[402442211,1768678251692,-500.0,0.00016712,3]
[402442213,1768678251703,-749.11,0.00016712,3]
[402442215,1768678251716,-500.0,0.00016712,3]
[402442218,1768678251729,-500.0,0.00016712,3]
[402442220,1768678251741,-500.0,0.00016712,3]
[402442222,1768678251754,-500.0,0.00016712,3]
[402442225,1768678251767,-717.8,0.00016712,3]
[402442227,1768678251780,-640.3,0.00016712,3]
[402442230,1768678251795,-500.0,0.00016712,3]
[402442232,1768678251808,-500.0,0.00016712,3]
[402442234,1768678251821,-500.0,0.00016712,3]
[402442237,1768678251833,-712.18,0.00016712,3]
[402442239,1768678251845,-523.93,0.00016712,3]
[402442242,1768678251858,-500.0,0.00016712,3]
[402442244,1768678251869,-741.99,0.00016712,3]
[402442246,1768678251880,-500.0,0.00016712,3]
[402442248,1768678251893,-500.0,0.00016712,3]
[402442250,1768678251907,-710.07,0.00016712,3]
[402442253,1768678251918,-500.0,0.00016712,3]
[402442255,1768678251930,-719.01,0.00016712,3]
[402442257,1768678251941,-852.0,0.00016712,3]
[402442259,1768678251954,-500.0,0.00016712,3]
[402442261,1768678251966,-500.0,0.00016712,3]
[402442263,1768678251978,-500.0,0.00016712,3]
[402442266,1768678251991,-500.0,0.00016712,3]
[402442268,1768678252004,-706.06,0.00016712,3]
[402442271,1768678252017,-500.0,0.00016712,3]
[402442273,1768678252032,-894.98,0.00016712,3]
[402442275,1768678252045,-1434.6,0.00016712,3]
[402442276,1768678252057,-500.0,0.00016712,3]
[402442277,1768678252069,-1026.57,0.00016712,3]
[402442278,1768678252078,-956.8,0.00016712,3]
[402442279,1768678252088,-500.0,0.00016712,3]
[402442280,1768678252098,-500.0,0.00016712,3]
[402442281,1768678252110,-1483.68,0.00016712,3]
[402442282,1768678252123,-500.0,0.00016712,3]
[402442283,1768678252136,-500.0,0.00016712,3]
[402442284,1768678252146,-500.0,0.00016712,3]
[402442285,1768678252157,-2978.31,0.00016712,3]
[402442286,1768678252168,-1502.97,0.00016712,3]
[402442287,1768678252180,-626.72,0.00016712,3]
[402442288,1768678252191,-500.0,0.00016712,3]
[402442289,1768678252202,-500.0,0.00016712,3]
[402442290,1768678252212,-934.5,0.00016712,3]
[402442291,1768678252224,-719.11,0.00016712,3]
[402442292,1768678252234,-500.0,0.00016712,3]
[402442293,1768678252246,-500.0,0.00016712,3]
[402442294,1768678252256,-1592.55,0.00016712,3]
[402442295,1768678252268,-500.0,0.00016712,3]
[402442296,1768678252279,-545.24616728,0.00016712,3]
[402442297,1768678252290,-500.0,0.00016712,3]
[402442298,1768678252301,-500.0,0.00016712,3]
[402442299,1768678252313,-648.92,0.00016712,3]
[402442300,1768678252324,-500.0,0.00016712,3]
[402442301,1768678252335,-500.0,0.00016712,3]
[402442302,1768678252345,-500.0,0.00016712,3]
[402442303,1768678252356,-500.0,0.00016712,3]
[402442304,1768678252367,-530.48,0.00016712,3]
[402442305,1768678252378,-500.0,0.00016712,3]
[402442306,1768678252390,-500.0,0.00016712,3]
[402442307,1768678252400,-500.0,0.00016712,3]
[402442308,1768678252412,-500.0,0.00016712,3]
[402442309,1768678252422,-789.23,0.00016712,3]
[402442310,1768678252433,-662.9,0.00016712,3]
[402442313,1768678252445,-500.0,0.00016712,3]
[402442315,1768678252455,-929.04,0.00016712,3]
[402442317,1768678252467,-770.4,0.00016712,3]
[402442319,1768678252479,-500.0,0.00016712,3]
[402442322,1768678252490,-500.0,0.00016712,3]
[402442324,1768678252500,-500.0,0.00016712,3]
[402442326,1768678252512,-1140.57,0.00016712,3]
[402442328,1768678252523,-500.0,0.00016712,3]
[402442331,1768678252534,-719.04,0.00016712,3]
[402442333,1768678252546,-437.89239693,0.00016712,3]
[402442335,1768678252559,-965.44,0.00016712,3]